fUST/lending_fUST_20250408
["ID","MTS","AMOUNT","RATE_DAILY","PERIOD"]
[357476397,1744079455356,-500.0,0.00023287,2]
[357476398,1744079455365,-503.47069159,0.00023287,2]
[357476399,1744079455374,-1182.11,0.00023287,2]
[357476400,1744079455384,-500.0,0.00023287,2]
[357476401,1744079455393,-500.0,0.00023287,2]
[357476402,1744079455404,-500.0,0.00023287,2]
[357476403,1744079455413,-500.0,0.00023287,2]
[357476404,1744079455423,-500.0,0.00023287,2]
[357476405,1744079455432,-526.21,0.00023287,2]
[357476406,1744079455443,-500.0,0.00023287,2]
[357476407,1744079455452,-2114.72,0.00023287,2]
[357476408,1744079455462,-500.0,0.00023287,2]
[357476409,1744079455471,-500.0,0.00023287,2]
[357476410,1744079455481,-572.22,0.00023287,2]
[357476411,1744079455491,-500.0,0.00023287,2]
[357476412,1744079455500,-8763.46,0.00023287,2]
[357476413,1744079455510,-500.0,0.00023287,2]
[357476414,1744079455520,-1114.99,0.00023287,2]
[357476415,1744079455529,-466.67446106,0.00023287,2]
[357476416,1744079455539,-500.0,0.00023287,2]
[357476417,1744079455549,-500.0,0.00023287,2]
[357476418,1744079455558,-500.0,0.00023287,2]
[357476419,1744079455568,-500.0,0.00023287,2]
[357476420,1744079455578,-836.02,0.00023287,2]
[357476421,1744079455588,-1780.71,0.00023287,2]
[357476422,1744079455598,-500.0,0.00023287,2]
[357476423,1744079455608,-500.0,0.00023287,2]
[357476424,1744079455618,-595.24,0.00023287,2]
[357476425,1744079455632,-524.96,0.00023287,2]
[357476426,1744079455646,-500.0,0.00023287,2]
[357476427,1744079455662,-500.0,0.00023287,2]
[357476428,1744079455674,-771.06,0.00023287,2]
[357476429,1744079455684,-500.0,0.00023287,2]
[357476430,1744079455694,-2262.69,0.00023287,2]
[357476431,1744079455703,-500.0,0.00023287,2]
[357476432,1744079455717,-500.0,0.00023287,2]
[357476433,1744079455727,-2880.26,0.00023287,2]
[357476434,1744079455737,-500.0,0.00023287,2]
[357476435,1744079455747,-1798.88,0.00023287,2]
[357476436,1744079455757,-1134.35,0.00023287,2]
[357476437,1744079455767,-500.0,0.00023287,2]
[357476438,1744079455776,-589.5,0.00023287,2]
[357476439,1744079455786,-500.0,0.00023287,2]
[357476440,1744079455796,-500.0,0.00023287,2]
[357476441,1744079455806,-500.0,0.00023287,2]
[357476442,1744079455816,-1340.54,0.00023287,2]
[357476443,1744079455826,-500.0,0.00023287,2]
[357476444,1744079455836,-500.0,0.00023287,2]
[357476445,1744079455845,-2337.51,0.00023287,2]
[357476446,1744079455854,-542.01,0.00023287,2]
[357476447,1744079455864,-2076.71,0.00023287,2]
[357476448,1744079455875,-500.0,0.00023287,2]
[357476449,1744079455884,-730.76,0.00023287,2]
[357476450,1744079455894,-500.0,0.00023287,2]
[357476451,1744079455904,-1162.69,0.00023287,2]
[357476452,1744079455914,-1291.27,0.00023287,2]
[357476453,1744079455924,-500.0,0.00023287,2]
[357476454,1744079455934,-546.37,0.00023287,2]
[357476455,1744079455943,-500.0,0.00023287,2]
[357476456,1744079455954,-1701.69,0.00023287,2]
[357476457,1744079455963,-1276.21,0.00023287,2]
[357476458,1744079455973,-500.0,0.00023287,2]
[357476459,1744079455983,-500.0,0.00023287,2]
[357476460,1744079455993,-561.08,0.00023287,2]
[357476461,1744079456002,-500.0,0.00023287,2]
[357476462,1744079456012,-500.0,0.00023287,2]
[357476463,1744079456022,-500.0,0.00023287,2]
[357476464,1744079456032,-500.0,0.00023287,2]
[357476465,1744079456042,-890.46,0.00023287,2]
[357476466,1744079456052,-500.0,0.00023287,2]
[357476467,1744079456061,-5381.3,0.00023287,2]
[357476468,1744079456071,-1513.16,0.00023287,2]
[357476469,1744079456081,-500.0,0.00023287,2]
[357476470,1744079456091,-500.0,0.00023287,2]
[357476471,1744079456101,-500.0,0.00023287,2]
[357476472,1744079456111,-500.0,0.00023287,2]
[357476473,1744079456121,-720.44,0.00023287,2]
[357476474,1744079456131,-500.0,0.00023287,2]
[357476475,1744079456140,-500.0,0.00023287,2]
[357476476,1744079456151,-500.0,0.00023287,2]
[357476477,1744079456161,-1073.11,0.00023287,2]
[357476478,1744079456170,-500.0,0.00023287,2]
[357476479,1744079456180,-568.94,0.00023287,2]
[357476480,1744079456190,-523.03,0.00023287,2]
[357476481,1744079456199,-795.94,0.00023287,2]
[357476482,1744079456209,-590.76,0.00023287,2]
[357476483,1744079456218,-1531.45,0.00023287,2]
[357476484,1744079456228,-500.0,0.00023287,2]
[357476485,1744079456237,-1878.37,0.00023287,2]
[357476486,1744079456248,-1180.34,0.00023287,2]
[357476487,1744079456257,-501.8282301,0.00023287,2]
[357476488,1744079456267,-2000.22,0.00023287,2]
[357476489,1744079456276,-1118.42,0.00023287,2]
[357476490,1744079456286,-500.0,0.00023287,2]
[357476491,1744079456296,-500.0,0.00023287,2]
[357476492,1744079456306,-1868.62,0.00023287,2]
[357476493,1744079456316,-500.0,0.00023287,2]
[357476494,1744079456325,-500.0,0.00023287,2]
[357476495,1744079456335,-500.0,0.00023287,2]
[357476496,1744079456345,-500.0,0.00023287,2]
[357476497,1744079456354,-500.0,0.00023287,2]
[357476498,1744079456363,-1602.29,0.00023287,2]
[357476499,1744079456373,-500.0,0.00023287,2]
[357476500,1744079456383,-1915.21,0.00023287,2]
[357476501,1744079456392,-500.0,0.00023287,2]
[357476502,1744079456402,-602.81,0.00023287,2]
[357476503,1744079456412,-500.0,0.00023287,2]
[357476504,1744079456421,-2426.96,0.00023287,2]
[357476505,1744079456430,-500.0,0.00023287,2]
[357476506,1744079456440,-500.0,0.00023287,2]
[357476507,1744079456450,-500.0,0.00023287,2]
[357476508,1744079456461,-500.0,0.00023287,2]
[357476509,1744079456471,-1165.83,0.00023287,2]
[357476510,1744079456481,-226.90719375,0.00023287,2]
[357476511,1744079456491,-2935.5,0.00023287,2]
[357476512,1744079456501,-955.52,0.00023287,2]
[357476513,1744079456510,-500.0,0.00023287,2]
[357476514,1744079456520,-500.0,0.00023287,2]
[357476515,1744079456530,-500.0,0.00023287,2]
[357476516,1744079456540,-1109.48,0.00023287,2]
[357476517,1744079456549,-500.0,0.00023287,2]
[357476518,1744079456559,-500.0,0.00023287,2]
[357476519,1744079456568,-500.0,0.00023287,2]
[357476520,1744079456578,-500.0,0.00023287,2]
[357476521,1744079456588,-500.0,0.00023287,2]
[357476522,1744079456597,-1240.57,0.00023287,2]
[357476523,1744079456607,-500.1809741,0.00023287,2]
[357476524,1744079456617,-500.0,0.00023287,2]
[357476525,1744079456628,-1640.16,0.00023287,2]
[357476526,1744079456640,-503.7,0.00023287,2]
[357476527,1744079456651,-500.0,0.00023287,2]
[357476528,1744079456661,-1130.38,0.00023287,2]
[357476529,1744079456673,-500.0,0.00023287,2]
[357476530,1744079456683,-500.0,0.00023287,2]
[357476531,1744079456693,-853.03,0.00023287,2]
[357476532,1744079456703,-510.33701651,0.00023294,2]
[357476533,1744079456715,-165.09083967,0.00023294,2]
[357476534,1744079456725,-256.9179675,0.00023294,2]
[357476535,1744079456735,-502.22652041,0.00023294,2]
[357476536,1744079456744,-501.06796866,0.00023294,2]
[357476537,1744079456754,-500.0,0.00023294,2]
[357476538,1744079456765,-501.01809197,0.00023294,2]
[357476539,1744079456775,-301.64419783,0.00023294,2]
[357476540,1744079456785,-500.0,0.00023294,2]
[357476541,1744079456794,-500.49303946,0.00023294,2]
[357476542,1744079456804,-593.05159071,0.00023294,2]
[357476543,1744079456813,-501.04185555,0.00023294,2]
[357476544,1744079456823,-500.63505816,0.00023294,2]
[357476545,1744079456833,-501.97825502,0.00023294,2]
[357476546,1744079456843,-500.0,0.00023561,2]
[357476547,1744079456853,-500.0,0.00023561,2]
[357476548,1744079456863,-500.0,0.00023561,2]
[357476549,1744079456872,-528.24011418,0.00023561,2]
[357476550,1744079456883,-152.04184998,0.00023561,2]
[357476551,1744079456893,-500.0,0.00023561,2]
[357476552,1744079456902,-500.0,0.00023561,2]
[357476553,1744079456913,-500.0,0.00023561,2]
[357476554,1744079456923,-500.0,0.00023561,2]
[357476555,1744079456933,-500.11,0.00023561,2]
[357476556,1744079456943,-500.0,0.00023561,2]
[357476557,1744079456953,-500.0,0.00023561,2]
[357476558,1744079456963,-500.0,0.00023561,2]
[357476559,1744079456973,-500.0,0.00023561,2]
[357476560,1744079456983,-500.0,0.00023561,2]
[357476561,1744079456993,-500.0,0.00023561,2]
[357476562,1744079457003,-500.0,0.00023561,2]
[357476563,1744079457012,-500.0,0.00023561,2]
[357476564,1744079457022,-500.0,0.00023561,2]
[357476565,1744079457032,-500.0,0.00023561,2]
[357476566,1744079457042,-500.0,0.00023561,2]
[357476567,1744079457052,-500.0,0.00023561,2]
[357476568,1744079457062,-500.0,0.00023561,2]
[357476569,1744079457071,-500.0,0.00023561,2]
[357476570,1744079457081,-500.0,0.00023561,2]
[357476571,1744079457090,-500.0,0.00023561,2]
[357476572,1744079457100,-500.0,0.00023561,2]
[357476573,1744079457110,-158.59495579,0.00023561,2]
[357476574,1744079457120,-500.0,0.00023561,2]
[357476575,1744079457130,-617.55,0.00023561,2]
[357476576,1744079457139,-500.0,0.00023561,2]
[357476577,1744079457149,-500.0,0.00023561,2]
[357476578,1744079457159,-500.0,0.00023561,2]
[357476579,1744079457169,-500.0,0.00023561,2]
[357476580,1744079457179,-655.89,0.00023561,2]
[357476581,1744079457189,-500.0,0.00023561,2]
[357476582,1744079457198,-500.0,0.00023561,2]
[357476583,1744079457208,-694.6,0.00023561,2]
[357476584,1744079457218,-500.0,0.00023561,2]
[357476585,1744079457228,-500.0,0.00023561,2]
[357476586,1744079457237,-777.63,0.00023561,2]
[357476587,1744079457247,-500.0,0.00023561,2]
[357476588,1744079457257,-536.91,0.00023561,2]
[357476589,1744079457266,-527.31,0.00023561,2]
[357476590,1744079457276,-647.06,0.00023561,2]
[357476591,1744079457285,-500.0,0.00023561,2]
[357476592,1744079457295,-1500.08,0.00023561,2]
[357476593,1744079457304,-500.0,0.00023561,2]
[357476594,1744079457314,-500.0,0.00023561,2]
[357476595,1744079457323,-601.69,0.00023561,2]
[357476596,1744079457333,-500.0,0.00023561,2]
[357476597,1744079457342,-500.0,0.00023561,2]
[357476598,1744079457351,-500.0,0.00023561,2]
[357476599,1744079457361,-500.0,0.00023561,2]
[357476600,1744079457370,-500.0,0.00023561,2]
[357476601,1744079457380,-1208.47,0.00023561,2]
[357476602,1744079457389,-500.0,0.00023561,2]
[357476603,1744079457399,-500.0,0.00023561,2]
[357476604,1744079457409,-1268.13,0.00023561,2]
[357476605,1744079457419,-500.0,0.00023561,2]
[357476606,1744079457429,-1140.19,0.00023561,2]
[357476607,1744079457438,-500.0,0.00023561,2]
[357476608,1744079457448,-727.74,0.00023561,2]
[357476609,1744079457458,-287.45188397,0.00023561,2]
[357476610,1744079457468,-500.0,0.00023561,2]
[357476611,1744079457478,-554.86,0.00023561,2]
[357476612,1744079457489,-831.74,0.00023561,2]
[357476613,1744079457499,-500.0,0.00023561,2]
[357476614,1744079457510,-500.0,0.00023561,2]
[357476615,1744079457520,-1393.1,0.00023561,2]
[357476616,1744079457530,-951.68,0.00023561,2]
[357476617,1744079457540,-500.0,0.00023561,2]
[357476618,1744079457550,-500.0,0.00023561,2]
[357476619,1744079457559,-500.0,0.00023561,2]
[357476620,1744079457569,-1353.37,0.00023561,2]
[357476621,1744079457579,-500.0,0.00023561,2]
[357476622,1744079457588,-500.0,0.00023561,2]
[357476623,1744079457599,-1182.11,0.00023561,2]
[357476624,1744079457609,-500.0,0.00023561,2]
[357476625,1744079457619,-500.0,0.00023561,2]
[357476626,1744079457630,-500.0,0.00023561,2]
[357476627,1744079457642,-500.0,0.00023561,2]
[357476628,1744079457652,-500.0,0.00023561,2]
[357476629,1744079457664,-526.21,0.00023561,2]
[357476630,1744079457674,-500.0,0.00023561,2]
[357476631,1744079457684,-2114.72,0.00023561,2]
[357476632,1744079457694,-500.0,0.00023561,2]
[357476633,1744079457704,-500.0,0.00023561,2]
[357476634,1744079457719,-572.22,0.00023561,2]
[357476635,1744079457729,-500.0,0.00023561,2]
[357476636,1744079457739,-500.0,0.00023561,2]
[357476637,1744079457749,-8763.46,0.00023561,2]
[357476638,1744079457758,-1114.99,0.00023561,2]
[357476639,1744079457768,-500.0,0.00023561,2]
[357476640,1744079457777,-500.0,0.00023561,2]
[357476641,1744079457787,-500.0,0.00023561,2]
[357476642,1744079457796,-500.0,0.00023561,2]
[357476643,1744079457806,-836.02,0.00023561,2]
[357476644,1744079457816,-1780.71,0.00023561,2]
[357476645,1744079457826,-500.0,0.00023561,2]
[357476646,1744079457836,-500.0,0.00023561,2]
[357476647,1744079457846,-595.24,0.00023561,2]
[357476648,1744079457855,-524.96,0.00023561,2]
[357476649,1744079457865,-500.0,0.00023561,2]
[357476650,1744079457875,-500.0,0.00023561,2]
[357476651,1744079457886,-771.06,0.00023561,2]
[357476652,1744079457895,-500.0,0.00023561,2]
[357476653,1744079457905,-2262.69,0.00023561,2]
[357476654,1744079457916,-500.0,0.00023561,2]
[357476655,1744079457926,-500.0,0.00023561,2]
[357476656,1744079457936,-2880.26,0.00023561,2]
[357476657,1744079457946,-500.0,0.00023561,2]
[357476658,1744079457956,-1798.88,0.00023561,2]
[357476659,1744079457965,-1134.35,0.00023561,2]
[357476660,1744079457975,-500.0,0.00023561,2]
[357476661,1744079457985,-589.5,0.00023561,2]
[357476662,1744079457995,-500.0,0.00023561,2]
[357476663,1744079458005,-500.0,0.00023561,2]
[357476664,1744079458015,-500.0,0.00023561,2]
[357476665,1744079458026,-1340.54,0.00023561,2]
[357476666,1744079458036,-500.0,0.00023561,2]
[357476667,1744079458046,-500.0,0.00023561,2]
[357476668,1744079458057,-2337.51,0.00023561,2]
[357476669,1744079458067,-542.01,0.00023561,2]
[357476670,1744079458076,-2076.71,0.00023561,2]
[357476671,1744079458086,-500.0,0.00023561,2]
[357476672,1744079458096,-730.76,0.00023561,2]
[357476673,1744079458106,-500.0,0.00023561,2]
[357476674,1744079458116,-1291.27,0.00023561,2]
[357476675,1744079458126,-1162.69,0.00023561,2]
[357476676,1744079458136,-511.82705808,0.00023561,2]
[357476677,1744079458289,-546.37,0.00023561,2]
[357476678,1744079458300,-473.14925142,0.00023561,2]
[357476679,1744079458311,-1701.69,0.00023561,2]
[357476680,1744079458321,-1276.21,0.00023561,2]
[357476681,1744079458332,-500.0,0.00023561,2]
[357476682,1744079458342,-500.0,0.00023561,2]
[357476683,1744079458352,-561.08,0.00023561,2]
[357476684,1744079458362,-378.85477467,0.00023561,2]
[357476685,1744079458373,-500.0,0.00023561,2]
[357476686,1744079458384,-500.0,0.00023561,2]
[357476687,1744079458395,-500.0,0.00023561,2]
[357476688,1744079458405,-890.46,0.00023561,2]
[357476689,1744079458415,-500.0,0.00023561,2]
[357476690,1744079458425,-5381.3,0.00023561,2]
[357476691,1744079458435,-1513.16,0.00023561,2]
[357476692,1744079458446,-500.0,0.00023561,2]
[357476693,1744079458456,-500.0,0.00023561,2]
[357476694,1744079458467,-500.0,0.00023561,2]
[357476695,1744079458477,-500.0,0.00023561,2]
[357476696,1744079458488,-720.44,0.00023561,2]
[357476697,1744079458498,-500.0,0.00023561,2]
[357476698,1744079458509,-500.0,0.00023561,2]
[357476699,1744079458521,-500.0,0.00023561,2]
[357476700,1744079458530,-1073.11,0.00023561,2]
[357476701,1744079458541,-500.0,0.00023561,2]
[357476702,1744079458551,-568.94,0.00023561,2]
[357476703,1744079458560,-523.03,0.00023561,2]
[357476704,1744079458570,-795.94,0.00023561,2]
[357476705,1744079458581,-590.76,0.00023561,2]
[357476706,1744079458591,-1531.45,0.00023561,2]
[357476707,1744079458601,-500.0,0.00023561,2]
[357476708,1744079458610,-1878.37,0.00023561,2]
[357476709,1744079458620,-1180.34,0.00023561,2]
[357476710,1744079458636,-2000.22,0.00023561,2]
[357476711,1744079458646,-1118.42,0.00023561,2]
[357476712,1744079458657,-500.0,0.00023561,2]
[357476713,1744079458667,-500.0,0.00023561,2]
[357476714,1744079458678,-1868.62,0.00023561,2]
[357476715,1744079458688,-500.0,0.00023561,2]
[357476716,1744079458698,-500.0,0.00023561,2]
[357476717,1744079458709,-500.0,0.00023561,2]
[357476718,1744079458721,-500.0,0.00023561,2]
[357476719,1744079458732,-500.0,0.00023561,2]
[357476720,1744079458742,-1602.29,0.00023561,2]
[357476721,1744079458752,-500.0,0.00023561,2]
[357476722,1744079458763,-1915.21,0.00023561,2]
[357476723,1744079458773,-500.0,0.00023561,2]
[357476724,1744079458783,-602.81,0.00023561,2]
[357476725,1744079458792,-500.0,0.00023561,2]
[357476726,1744079458802,-2426.96,0.00023561,2]
[357476727,1744079458812,-500.0,0.00023561,2]
[357476728,1744079458822,-500.0,0.00023561,2]
[357476729,1744079458831,-500.0,0.00023561,2]
[357476730,1744079458841,-500.0,0.00023561,2]
[357476731,1744079458851,-1165.83,0.00023561,2]
[357476732,1744079458861,-2935.5,0.00023561,2]
[357476733,1744079458871,-955.52,0.00023561,2]
[357476734,1744079458881,-500.0,0.00023561,2]
[357476735,1744079458891,-500.0,0.00023561,2]
[357476736,1744079458902,-500.0,0.00023561,2]
[357476737,1744079458913,-1109.48,0.00023561,2]
[357476738,1744079458923,-168.23216722,0.00023561,2]
[357476739,1744079458933,-500.0,0.00023561,2]
[357476740,1744079458943,-500.0,0.00023561,2]
[357476741,1744079458953,-500.0,0.00023561,2]
[357476742,1744079458963,-500.0,0.00023561,2]
[357476743,1744079458973,-1240.57,0.00023561,2]
[357476744,1744079458983,-500.0,0.00023561,2]
[357476745,1744079458993,-1640.16,0.00023561,2]
[357476746,1744079459003,-503.7,0.00023561,2]
[357476747,1744079459014,-500.0,0.00023561,2]
[357476748,1744079459024,-1130.38,0.00023561,2]
[357476749,1744079459033,-500.0,0.00023561,2]
[357476750,1744079459043,-251.89398279,0.00023561,2]
[357476751,1744079459053,-853.03,0.00023561,2]
[357476752,1744079459063,-500.0,0.00023835,2]
[357476753,1744079459072,-500.0,0.00023835,2]
[357476754,1744079459082,-500.0,0.00023835,2]
[357476755,1744079459092,-500.0,0.00023835,2]
[357476756,1744079459104,-500.0,0.00023835,2]
[357476757,1744079459118,-500.0,0.00023835,2]
[357476758,1744079459133,-500.0,0.00023835,2]
[357476759,1744079459146,-500.11,0.00023835,2]
[357476760,1744079459157,-500.0,0.00023835,2]
[357476761,1744079459166,-500.0,0.00023835,2]
[357476762,1744079459177,-296.45367776,0.00023835,2]
[357476763,1744079459186,-500.0,0.00023835,2]
[357476764,1744079459196,-500.0,0.00023835,2]
[357476765,1744079459207,-500.0,0.00023835,2]
[357476766,1744079459218,-500.0,0.00023835,2]
[357476767,1744079459229,-500.0,0.00023835,2]
[357476768,1744079459238,-500.0,0.00023835,2]
[357476769,1744079459248,-500.0,0.00023835,2]
[357476770,1744079459259,-500.0,0.00023835,2]
[357476771,1744079459270,-500.0,0.00023835,2]
[357476772,1744079459281,-500.0,0.00023835,2]
[357476773,1744079459292,-500.0,0.00023835,2]
[357476774,1744079459303,-500.0,0.00023835,2]
[357476775,1744079459315,-500.0,0.00023835,2]
[357476776,1744079459326,-500.0,0.00023835,2]
[357476777,1744079459338,-260.21501903,0.00023835,2]
[357476778,1744079459349,-617.55,0.00023835,2]
[357476779,1744079459359,-500.0,0.00023835,2]
[357476780,1744079459369,-500.0,0.00023835,2]
[357476781,1744079459381,-500.0,0.00023835,2]
[357476782,1744079459392,-500.0,0.00023835,2]
[357476783,1744079459402,-655.89,0.00023835,2]
[357476784,1744079459412,-500.0,0.00023835,2]
[357476785,1744079459422,-500.0,0.00023835,2]
[357476786,1744079459432,-694.6,0.00023835,2]
[357476787,1744079459442,-500.0,0.00023835,2]
[357476788,1744079459452,-500.0,0.00023835,2]
[357476789,1744079459462,-777.63,0.00023835,2]
[357476790,1744079459472,-500.0,0.00023835,2]
[357476791,1744079459482,-536.91,0.00023835,2]
[357476792,1744079459492,-527.31,0.00023835,2]
[357476793,1744079459502,-647.06,0.00023835,2]
[357476794,1744079459512,-500.0,0.00023835,2]
[357476795,1744079459521,-1500.08,0.00023835,2]
[357476796,1744079459531,-500.0,0.00023835,2]
[357476797,1744079459541,-500.0,0.00023835,2]
[357476798,1744079459551,-601.69,0.00023835,2]
[357476799,1744079459561,-500.0,0.00023835,2]
[357476800,1744079459571,-310.50306711,0.00023835,2]
[357476801,1744079459581,-500.0,0.00023835,2]
[357476802,1744079459591,-500.0,0.00023835,2]
[357476803,1744079459602,-500.0,0.00023835,2]
[357476804,1744079459612,-1208.47,0.00023835,2]
[357476805,1744079459621,-500.0,0.00023835,2]
[357476806,1744079459635,-500.0,0.00023835,2]
[357476807,1744079459645,-1268.13,0.00023835,2]
[357476808,1744079459655,-500.0,0.00023835,2]
[357476809,1744079459665,-1140.19,0.00023835,2]
[357476810,1744079459676,-500.0,0.00023835,2]
[357476811,1744079459686,-727.74,0.00023835,2]
[357476812,1744079459696,-152.13772553,0.00023835,2]
[357476813,1744079459706,-554.86,0.00023835,2]
[357476814,1744079459716,-831.74,0.00023835,2]
[357476815,1744079459726,-500.0,0.00023835,2]
[357476816,1744079459735,-500.0,0.00023835,2]
[357476817,1744079459745,-1393.1,0.00023835,2]
[357476818,1744079459754,-951.68,0.00023835,2]
[357476819,1744079459764,-500.0,0.00023835,2]
[357476820,1744079459774,-500.0,0.00023835,2]
[357476821,1744079459784,-500.0,0.00023835,2]
[357476822,1744079459793,-1353.37,0.00023835,2]
[357476823,1744079459803,-500.0,0.00023835,2]
[357476824,1744079459812,-500.0,0.00023835,2]
[357476825,1744079459822,-1182.11,0.00023835,2]
[357476826,1744079459833,-500.0,0.00023835,2]
[357476827,1744079459842,-500.0,0.00023835,2]
[357476828,1744079459852,-500.0,0.00023835,2]
[357476829,1744079459862,-500.0,0.00023835,2]
[357476830,1744079459871,-500.0,0.00023835,2]
[357476831,1744079459881,-526.21,0.00023835,2]
[357476832,1744079459891,-500.0,0.00023835,2]
[357476833,1744079459900,-2114.72,0.00023835,2]
[357476834,1744079459910,-500.0,0.00023835,2]
[357476835,1744079459920,-500.0,0.00023835,2]
[357476836,1744079459930,-572.22,0.00023835,2]
[357476837,1744079459940,-500.0,0.00023835,2]
[357476838,1744079459950,-500.0,0.00023835,2]
[357476839,1744079459960,-8763.46,0.00023835,2]
[357476840,1744079459969,-1114.99,0.00023835,2]
[357476841,1744079459979,-500.0,0.00023835,2]
[357476842,1744079459988,-500.0,0.00023835,2]
[357476843,1744079459998,-500.0,0.00023835,2]
[357476844,1744079460007,-500.0,0.00023835,2]
[357476845,1744079460018,-836.02,0.00023835,2]
[357476846,1744079460029,-1780.71,0.00023835,2]
[357476847,1744079460040,-500.0,0.00023835,2]
[357476848,1744079460050,-500.0,0.00023835,2]
[357476849,1744079460060,-595.24,0.00023835,2]
[357476850,1744079460071,-524.96,0.00023835,2]
[357476851,1744079460080,-500.0,0.00023835,2]
[357476852,1744079460090,-156.80660021,0.00023835,2]
[357476853,1744079460100,-771.06,0.00023835,2]
[357476854,1744079460109,-503.39729275,0.00023835,2]
[357476855,1744079460119,-2262.69,0.00023835,2]
[357476856,1744079460129,-500.0,0.00023835,2]
[357476857,1744079460138,-331.93918513,0.00023835,2]
[357476858,1744079460148,-2880.26,0.00023835,2]
[357476859,1744079460158,-500.0,0.00023835,2]
[357476860,1744079460168,-1798.88,0.00023835,2]
[357476861,1744079460177,-1134.35,0.00023835,2]
[357476862,1744079460187,-500.0,0.00023835,2]
[357476863,1744079460197,-589.5,0.00023835,2]
[357476864,1744079460206,-500.0,0.00023835,2]
[357476865,1744079460216,-500.0,0.00023835,2]
[357476866,1744079460226,-500.0,0.00023835,2]
[357476867,1744079460236,-1340.54,0.00023835,2]
[357476868,1744079460246,-500.0,0.00023835,2]
[357476869,1744079460256,-500.0,0.00023835,2]
[357476870,1744079460266,-2337.51,0.00023835,2]
[357476871,1744079460276,-542.01,0.00023835,2]
[357476872,1744079460286,-2076.71,0.00023835,2]
[357476873,1744079460295,-500.0,0.00023835,2]
[357476874,1744079460305,-730.76,0.00023835,2]
[357476875,1744079460315,-500.0,0.00023835,2]
[357476876,1744079460325,-1291.27,0.00023835,2]
[357476877,1744079460335,-1162.69,0.00023835,2]
[357476878,1744079460345,-546.37,0.00023835,2]
[357476879,1744079460354,-1701.69,0.00023835,2]
[357476880,1744079460364,-1276.21,0.00023835,2]
[357476881,1744079460374,-500.0,0.00023835,2]
[357476882,1744079460383,-500.0,0.00023835,2]
[357476883,1744079460394,-561.08,0.00023835,2]
[357476884,1744079460404,-500.0,0.00023835,2]
[357476885,1744079460414,-500.0,0.00023835,2]
[357476886,1744079460423,-500.0,0.00023835,2]
[357476887,1744079460433,-890.46,0.00023835,2]
[357476888,1744079460442,-500.0,0.00023835,2]
[357476889,1744079460452,-5381.3,0.00023835,2]
[357476890,1744079460461,-1513.16,0.00023835,2]
[357476891,1744079460471,-500.0,0.00023835,2]
[357476892,1744079460481,-500.0,0.00023835,2]
[357476893,1744079460490,-512.91102725,0.00023835,2]
[357476894,1744079460500,-500.0,0.00023835,2]
[357476895,1744079460510,-720.44,0.00023835,2]
[357476896,1744079460519,-500.0,0.00023835,2]